Cogmind - Beta 13 @@@ ROGUE MODE // 2024.05.27 @ 12:55:57 Player: JTMusky Result: Destroyed by D-53 Grenadier with Mini Grenade Launcher Performance ------------- Evolutions (0) 0 Regions Visited (4) 800 Robots Destroyed (0) 0 Value Destroyed (0) 0 Prototype IDs (1) 20 Alien Tech Used (0) 0 Bonus (300) 300 TOTAL SCORE: 1120 Bonus ------- Aligned with FarCom 300 Cogmind --------- Core Integrity 0/250 Matter 295/300 Energy 99/100 System Corruption 0% Temperature Cool (0) Movement Core (50) Location -9/Mines Parts ------- > --- POWER (1) -------- (None) > --- PROPULSION (2) --- (None) > --- UTILITY (2) ------ Seismic Detector Salvage Targeting Computer > --- WEAPON (2) ------- (None) > --- INVENTORY (5) ---- High-capacity Battery (250) High-capacity Battery (250) Weight Redist. System Splice Drone Bay (6/6) Rocket Launcher Peak State ------------ > --- POWER ------------ (None) > --- PROPULSION ------- (None) > --- UTILITY ---------- Seismic Detector Splice Drone Bay > --- WEAPON ----------- Mining Laser > --- INVENTORY -------- Rocket Launcher [Rating: 9] Favorites ----------- Power None Propulsion None Utility Seismic Detector Device Seismic Detector Processor Salvage Targeting Computer Weapon Mining Laser Special Weapon Mining Laser Build | -11 -10 -10 -10 -9 ------- Run | Yrd Mat Min Exi Min Slots Evolved . | . . . . . Power . | . . . . . Propulsion . | . . . . . Utility . | . . . . . Weapon . | . . . . . Parts Attached 4 | . 2 1 . 1 Power . | . . . . . Engine . | . . . . . Core . | . . . . . Reactor . | . . . . . Propulsion . | . . . . . Treads . | . . . . . Leg . | . . . . . Wheel . | . . . . . Hover . | . . . . . Flight . | . . . . . Utility 3 | . 1 1 . 1 Device 2 | . 1 1 . . Storage . | . . . . . Processor 1 | . . . . 1 Hackware . | . . . . . Protection . | . . . . . Artifact . | . . . . . Weapon 1 | . 1 . . . Energy Gun . | . . . . . Energy Cannon . | . . . . . Ballistic Gun . | . . . . . Ballistic Cannon . | . . . . . Launcher . | . . . . . Special Weapon 1 | . 1 . . . Impact Weapon . | . . . . . Slashing Weapon . | . . . . . Piercing Weapon . | . . . . . Special Melee Weapon . | . . . . . Unidentified Prototypes 1 | . . 1 . . Parts Lost 1 | . . . . 1 Power . | . . . . . Propulsion . | . . . . . Utility . | . . . . . Weapon 1 | . . . . 1 Highest Loss Streak 1 | . . . . 1 To Critical Strikes . | . . . . . Average Slot Usage (%) 25 | . 2 28 28 28 Device 12 | . 2 14 14 14 Special Weapon 12 | . . 14 14 14 Naked Turns 122 | . 122 . . . Heaviest Build 2 | . 2 2 2 2 Greatest Support 3 | 3 3 3 3 3 Greatest Overweight (x) . | . . . . . Average Overweight (x) . | . . . . . Largest Inventory Capacity 5 | 5 5 5 5 5 Average Capacity 5 | 5 5 5 5 5 Most Carried 5 | . . 2 5 5 Average Carried 2 | . . . 4 4 Final Capacity 5 | 5 5 5 5 5 Final Carried 5 | . . 2 5 5 Class Distribution -------------------- 100% | Mutant Dominant Class ---------------- Mutant | -10/Materials Mutant | -10/Mines Mutant | -10/Exiles Mutant | -9/Mines Resources | -11 -10 -10 -10 -9 ----------- Run | Yrd Mat Min Exi Min Matter Collected 230 | 80 . . 150 . Remotely . | . . . . . Salvage Created . | . . . . . Parts . | . . . . . Haulers Intercepted . | . . . . . Recyclers Shooed . | . . . . . Parts Field Recycled . | . . . . . Retrieved Matter . | . . . . . Parts Self-Destructed . | . . . . . Prevented . | . . . . . Kills | -11 -10 -10 -10 -9 ------- Run | Yrd Mat Min Exi Min Combat Hostiles Destroyed . | . . . . . Classes Destroyed . | . . . . . Best Kill Streak . | . . . . . Combat Bots Only . | . . . . . Max Kills in Single Turn . | . . . . . Gunslinging . | . . . . . Exploded . | . . . . . Melee . | . . . . . Uniques/NPCs Destroyed . | . . . . . Combat | -11 -10 -10 -10 -9 -------- Run | Yrd Mat Min Exi Min Hostile Shots Fired 35 | . 32 . . 3 Missed 17 | . 16 . . 1 Damage Taken 304 | . 217 . . 87 Core 260 | . 217 . . 43 Absorbed by Shields . | . . . . . Core Remaining (%) 100 | 100 . . . . Volleys Fired 13 | . . 10 3 . Largest 1 | . . 1 1 . Hottest 100 | . . 100 100 . Shots Fired 13 | . . 10 3 . Gun . | . . . . . Cannon . | . . . . . Launcher . | . . . . . Special 13 | . . 10 3 . Kinetic . | . . . . . Thermal 13 | . . 10 3 . Explosive . | . . . . . Electromagnetic . | . . . . . Robot Hit Streak . | . . . . . Robot Miss Streak . | . . . . . Penetration Max . | . . . . . Secondary Targets . | . . . . . Shots Hit Robots . | . . . . . Core Hits . | . . . . . Critical Kills . | . . . . . Critical Parts Destroyed . | . . . . . Critical Strikes . | . . . . . Melee Attacks . | . . . . . Impact . | . . . . . Slashing . | . . . . . Piercing . | . . . . . Sneak Attacks . | . . . . . Combat Hostiles . | . . . . . Follow-up Attacks . | . . . . . Damage Inflicted . | . . . . . Guns . | . . . . . Cannons . | . . . . . Explosions . | . . . . . Melee . | . . . . . Ramming . | . . . . . Kinetic . | . . . . . Thermal . | . . . . . Explosive . | . . . . . Electromagnetic . | . . . . . Impact . | . . . . . Slashing . | . . . . . Piercing . | . . . . . Highest Corruption . | . . . . . Average Corruption . | . . . . . Corruption Purged . | . . . . . Corruption Blocked . | . . . . . Overload Shots . | . . . . . Overflow Damage . | . . . . . Projectiles . | . . . . . Explosions . | . . . . . Melee . | . . . . . Knockbacks . | . . . . . Impact . | . . . . . Kinetic . | . . . . . Secondary . | . . . . . Self-Inflicted Damage . | . . . . . Shots . | . . . . . Rammed . | . . . . . Targets Rammed . | . . . . . Kicked . | . . . . . Crushed . | . . . . . Highest Temperature . | . . . . . Average Temperature . | . . . . . Received Heat Transfer 96 | . 96 . . . Siege Activations . | . . . . . Robots Corrupted . | . . . . . Combat Hostiles . | . . . . . Parts Fried . | . . . . . Impact Corruptions . | . . . . . Robots Melted . | . . . . . Combat Hostiles . | . . . . . Parts Melted . | . . . . . Heat Transferred . | . . . . . Parts Sabotaged . | . . . . . Parts Stolen . | . . . . . Parts Stripped . | . . . . . Power Chain Reactions . | . . . . . Alert | -11 -10 -10 -10 -9 ------- Run | Yrd Mat Min Exi Min Peak Influence 15 | . 15 12 . 5 Initial 5 | . . 5 . . Average 7 | . 14 7 . . Maximum Alert Level . | . . . . . Low Security (%) 100 | 100 100 100 . 100 Level 1 . | . . . . . Level 2 . | . . . . . Level 3 . | . . . . . Level 4 . | . . . . . Level 5 . | . . . . . High Security . | . . . . . Max Security . | . . . . . Squads Dispatched 1 | . 1 . . . Investigation . | . . . . . Extermination . | . . . . . Reinforcement 1 | . 1 . . . Assault . | . . . . . Garrison . | . . . . . Intercept . | . . . . . Searches Triggered . | . . . . . Construction Impeded . | . . . . . Haulers Reinforced . | . . . . . Active Scanning Responses . | . . . . . Cargo Convoy Interrupts . | . . . . . Stealth | -11 -10 -10 -10 -9 --------- Run | Yrd Mat Min Exi Min Distress Signals . | . . . . . Communications Jammed . | . . . . . Distress Signals . | . . . . . Times Spotted 7 | . 3 . . 4 Peak Tracking Total 9 | . 3 . . 9 Tactical Retreats 1 | . . . . 1 Traps | -11 -10 -10 -10 -9 ------- Run | Yrd Mat Min Exi Min Traps Triggered 1 | . 1 . . . Indirectly . | . . . . . Trap Hack Attempts . | . . . . . Triggered . | . . . . . Disarmed . | . . . . . Reprogrammed . | . . . . . Reused . | . . . . . Traps Extracted . | . . . . . Installed . | . . . . . Triggered . | . . . . . Machines | -11 -10 -10 -10 -9 ---------- Run | Yrd Mat Min Exi Min Machines Disabled 1 | . . . 1 . Max in Single Turn 1 | . . . 1 . Machines Repaired . | . . . . . Machines Dismantled . | . . . . . Machines Sabotaged . | . . . . . Overloaded Fab Kills . | . . . . . Hacking | -11 -10 -10 -10 -9 --------- Run | Yrd Mat Min Exi Min Machines Accessed 5 | . . 1 4 . Terminals . | . . . . . Fabricators . | . . . . . Repair Stations . | . . . . . Recycling Units . | . . . . . Scanalyzers . | . . . . . Garrison Access . | . . . . . Total Hacks 50 | . . 1 49 . Successful 50 | . . 1 49 . Failed . | . . . . . Catastrophic . | . . . . . Database Lockouts . | . . . . . Manual . | . . . . . Terminals . | . . . . . Fabricators . | . . . . . Repair Stations . | . . . . . Recycling Units . | . . . . . Scanalyzers . | . . . . . Garrison Access . | . . . . . Terminal Hacks 50 | . . 1 49 . Record 49 | . . . 49 . Open Door 1 | . . 1 . . Fabricator Hacks . | . . . . . Repair Station Hacks . | . . . . . Recycling Unit Hacks . | . . . . . Scanalyzer . | . . . . . Garrison Access Hacks . | . . . . . Unauthorized Hacks . | . . . . . Terminals . | . . . . . Fabricators . | . . . . . Repair Stations . | . . . . . Recycling Units . | . . . . . Scanalyzers . | . . . . . Garrison Access . | . . . . . Data Cores Recovered . | . . . . . Used . | . . . . . Hacking Detections . | . . . . . Full Trace Events . | . . . . . Feedback Events . | . . . . . Feedback Blocked . | . . . . . Robot Schematics Acquired . | . . . . . Robots Built . | . . . . . Authchips . | . . . . . Time . | . . . . . Total Robot Build Rating . | . . . . . Part Schematics Acquired . | . . . . . Parts Built . | . . . . . Authchips . | . . . . . Time . | . . . . . Total Part Build Rating . | . . . . . Parts Repaired . | . . . . . Time . | . . . . . Parts Recycled . | . . . . . Recycled Matter . | . . . . . Retrieved Matter . | . . . . . Retrieved Components . | . . . . . Parts Scanalyzed . | . . . . . Part Schematics Acquired . | . . . . . Parts Damaged . | . . . . . Bothacking | -11 -10 -10 -10 -9 ------------ Run | Yrd Mat Min Exi Min Used RIF Installer . | . . . . . Robots Hacked . | . . . . . Non-combat . | . . . . . Combat . | . . . . . Robot Hacks Applied . | . . . . . Relay Couplers Released . | . . . . . Fabnet Peak Effective % . | . . . . . Robots Rewired . | . . . . . Allies Hacked . | . . . . . Hacks Repelled . | . . . . . Allies | -11 -10 -10 -10 -9 -------- Run | Yrd Mat Min Exi Min Total Allies 3 | . . 3 . . Largest Group 3 | . . 3 3 3 Highest-Rated Group 40 | . . 40 40 40 Highest-Rated Ally 16 | . . 16 16 16 Total Orders 7 | . . 1 5 1 ROAM 2 | . . . 2 . FOLLOW 4 | . . 1 3 . AID 1 | . . . . 1 Ally Attacks 15 | . . . . 15 Total Damage 180 | . . . . 180 Kills 2 | . . . . 2 Allies Corrupted . | . . . . . Allies Melted . | . . . . . Intel | -11 -10 -10 -10 -9 ------- Run | Yrd Mat Min Exi Min Robot Analysis Total . | . . . . . Derelict Logs Recovered 3 | . . 1 . 2 Drone Launches . | . . . . . Drone Recoveries . | . . . . . Exploration | -11 -10 -10 -10 -9 ------------- Run | Yrd Mat Min Exi Min Turns Passed 1646 | 10 152 520 823 141 Spaces Moved 2138 | 20 215 732 927 244 Core 2138 | 20 215 732 927 244 Treads . | . . . . . Legs . | . . . . . Wheels . | . . . . . Hover . | . . . . . Flight . | . . . . . Fastest Speed 50 | 50 50 50 50 50 Average Speed 50 | 50 50 50 50 50 Slowest Speed 50 | 50 50 50 50 50 Overloaded Moves . | . . . . . Propulsion Burnouts . | . . . . . Robots Hopped . | . . . . . Cave-ins Triggered . | . . . . . Exploration Rate (%) 55 | 3 26 97 92 58 Regions Visited 4 Branch Regions 3 Pre-discovered Areas 2 | . . . 1 1 Known Exits Taken . | . . . . . Unknown Exits Taken 4 | 1 1 1 1 . Scrap Searched 1 | . . . . 1 Spaces Dug 11 | . . 10 1 . Terrain Destroyed 12 | . . 10 2 . Melee . | . . . . . Projectile 12 | . . 10 2 . AOE . | . . . . . Terrain Rammed . | . . . . . Walls Destroyed . | . . . . . Machines Disabled . | . . . . . Actions | -11 -10 -10 -10 -9 --------- Run | Yrd Mat Min Exi Min Total 2671 | 19 257 855 1277 263 Wait 508 | . 41 111 340 16 Move 2134 | 19 214 731 926 244 Hop . | . . . . . Pick Up 7 | . . 1 5 1 Fast Attach 4 | . 2 1 . 1 Attach . | . . . . . Detach 1 | . . 1 . . Swap . | . . . . . Drop 3 | . . . 2 1 Fire 13 | . . 10 3 . Melee . | . . . . . Ram . | . . . . . Kick . | . . . . . Crush . | . . . . . Escape Stasis . | . . . . . Rewire 1 | . . . 1 . Trap . | . . . . . Miscellaneous . | . . . . . Route ------- -11/Scrapyard -10/Materials -10/Mines (discovered 3 exits: [*Mat x2] / *Exi) -10/Exiles -9/Mines History --------- Turn | Location | Event 4 | -11/Scrapyard | Discovered new exit (range 15) 11 | -11/Scrapyard | Entered Materials 108 | -10/Materials | Core integrity fell below 50% 126 | -10/Materials | Core integrity fell below 20% 138 | -10/Materials | Discovered new exit (range 16) 163 | -10/Materials | Entered Mines 238 | -10/Mines | Deemed a non-threat by the Exiles lab entrance 238 | -10/Mines | Discovered new exit (range 5) 314 | -10/Mines | Build established: Mutant 389 | -10/Mines | Learned Materials security intel 439 | -10/Mines | Received a Rocket Launcher from a helpful Derelict 508 | -10/Mines | Found the Drone Emporium 512 | -10/Mines | Found Prototype Device 512 | -10/Mines | Identified Splice Drone Bay 540 | -10/Mines | Discovered new exit (range 5) 543 | -10/Mines | Assisted by bots powering up and referring to "LRC-V3" 562 | -10/Mines | Discovered new exit (range 10) 683 | -10/Mines | Entered Exiles 683 | -10/Exiles | Accompanied by 3 allies 697 | -10/Exiles | Met 8R-AWN 723 | -10/Exiles | Met EX-HEX 747 | -10/Exiles | Met EX-BIN 769 | -10/Exiles | Aligned with FarCom system 769 | -10/Exiles | Given EX-Vault access code 829 | -10/Exiles | Met EX-DEC 842 | -10/Exiles | Learned location of Zion (-6) 870 | -10/Exiles | Discovered new exit (range 11) 1004 | -10/Exiles | Visited The Gauntlet 1506 | -10/Exiles | Entered Mines 1506 | -9/Mines | Accompanied by 3 allies 1535 | -9/Mines | Learned location of Storage (-8) 1576 | -9/Mines | Assembled infested the area 1581 | -9/Mines | Assisted by a Guerilla fighting off Assembled 1593 | -9/Mines | Met a Derelict bent on vengeance 1647 | -9/Mines | Destroyed by D-53 Grenadier with Mini Grenade Launcher Last Messages --------------- group of Assembled to figure out where they're coming from, and they're closing on this area, come on!" 01589_ K-01 Serf collects debris. 01589_ I9-EXE(h): "I'll hold them off! Go on ahead or try to find another way!" 01632_ T-07 Excavator is excavating. 01638_ Acquired derelict log, extracted data. Data stored: Factory entrances (x1). 01639_ T-07 Excavator is excavating. 01642_ Searching scrap... 01642_ Found Beam Rifle. 01642_ Found Salvage Targeting Computer. 01642_ Found Weight Redist. System. 01642_ Found 13 Matter. 01643_ Acquired Salvage Targeting Computer. 01644_ Dropped Hcp. Battery. 01645_ Extracted 13 energy. 01646_ Acquired Weight Redist. System. 01647_ Mining Laser destroyed. Map ----- +----------------------------------------------------+ | #??# #???????????????????????????????????????? | | ##?# #????????????????????????????????######## | | ### #????????????????????????????????# | | ##??####?????????????????????????# | | #### ##?????##?????????????????# """ | | ##???? #???????????????# """ | | #???## ##??????????????# """ | | ##### ###????????????# | | """ ## #### #???????# """ | | # """ #???????# """ | | ## """ #???????????# """ | | ?# ##???????????# | | ?## ## ## ##????????????# """ | | ??## ### ### #### #?????????????# """ | | ???## ##?# #?## #??# #??#??????????# """ | | ????# #??# #??# #?# ## #??????????# | | ????# #??# #??# ## #??????????# | | ????#####??# #??## ## ####??????????# | | ???????????# #???## ## #?????????????######## | | ???????????# #????## ## #??????????????????### | | ???????????# #?????# ## #??????????????????# | | ???????????# #?????## ### #??????????????????# # | | ???????????# #???????### #??????????????????# # | | ???????????# #???????### #??????????????????# # | | ???????????# #???????# !% ##??????????????????# # | | ???????????# ######### @ #?###???????????????# # | | ???????????# [ ## ##??????????# ### # | | ???????????########### #??????????# | | ?????????????????????# #??###?????# | | ?????????????????????## ##?## ##????####### | | ??????????????????????# ##### #??????????# | | ??????????????????????# ## #??????????# | | ??????????????????????## # #???????#### | | ???????????????????????# # ##??????# | | ???????????????????????#dd # ######?# ## | | ??????????????????????? = ## ### #? | | ??????????????????????? ## #? | | ??????????????????????? # ## | | ????????????????? | | ??????????????# ## | | ??????????????? ###### #?## #### ########## | | ???????????????????????? ##???# ##??# #????????? | | ??????????????????????????????# #???# #????????? | | ??????????????????????????????# #???# #????????? | | ?????????????????????????###### #???# #????????? | | ??????????????????????#### #???# #????????? | | ?????????????????????## #???# #????????? | | ????????????????????## """ #???# ##???????? | | ???????????????????## """ ##?## #???##### | | ???????????????????# """ ### #???# | +----------------------------------------------------+ Best States ------------- Heat Dissipation 25 Energy Generation 5 Energy Capacity 100 Matter Stores 300 Matter Capacity 300 Sight Range 16 Terrain Scan Density 10 Evasion (%) 50 Item Schematics ----------------- None Robot Schematics ------------------ None Fabricated ------------ Nothing Alien Tech Used ----------------- None Achievements -------------- None Challenges ------------ None Game ------ Seed PhasingPrecisionBlaster Manual? 0 Play Time 00:36:48 Cumulative 26.0 hours Start 2024.05.27 @ 11:43:07 End 2024.05.27 @ 12:55:57 Sessions 8 Manual Loads 0 Difficulty Rogue Special Mode None Game No. 34 Rogue 34 Adventurer 0 Explorer 0 Win Type - Total 0 Types 0/0/0/0/0/0/0/0/0 Lore% 18 Gallery% 15 Achievement% 16 Wizard Run 0 Options --------- Layout 2 ASCII 1 Keyboard 1 Movement Vi Keybinds 0 Fullscreen 2 Font 40/SmallcapsGlow Map View 50x44 Zoom Use 0% Tactical HUD 1 Map Filters NONE Filters NONE Steam 0 RUN: 74c8611e-a604-4bd8-a72b-e1898a2a105c